Cogmind - Beta 16 @@@ ROGUE MODE // 2025.12.23 @ 14:54:38 Player: Desaphets Result: Destroyed by G-47 Trooper with Particle Gun Performance ------------- Evolutions (2) 1000 Regions Visited (3) 600 Robots Destroyed (65) 325 Value Destroyed (1883) 1883 Prototype IDs (3) 60 Alien Tech Used (0) 0 Bonus (-335) -335 TOTAL SCORE: 3533 Bonus ------- Friendly Fire -335 Cogmind --------- Core Integrity 0/550 Matter 159/300 Energy 70/100 System Corruption 0% Temperature Cool (41) Movement Core (550) Ox10 Location -8/Materials Parts ------- > --- POWER (1) -------- (None) > --- PROPULSION (2) --- (None) > --- UTILITY (4) ------ Large Storage Unit Layered Light Armor Plating Layered Light Armor Plating > --- WEAPON (4) ------- Heavy Flail > --- INVENTORY (15) --- Carbon-fiber Leg Medium Matter Pod (0) Kinecellerator Kinecellerator Layered Light Armor Plating V3-11A's Pendant Autogun Mini Grenade Launcher Hammer Axe Peak State ------------ > --- POWER ------------ Ion Engine > --- PROPULSION ------- Light Treads Light Treads > --- UTILITY ---------- Large Storage Unit Layered Light Armor Plating Layered Light Armor Plating Insulated Plating > --- WEAPON ----------- Particle Gun Autogun Heavy Flail > --- INVENTORY -------- Carbon-fiber Leg Medium Matter Pod Kinecellerator Kinecellerator Layered Light Armor Plating Layered Light Armor Plating V3-11A's Pendant Rocket Launcher Mini Grenade Launcher Hammer Axe [Rating: 25] Favorites ----------- Power Ion Engine Engine Ion Engine Propulsion Light Treads Treads Light Treads Leg Aluminum Leg Wheel Wheel Utility Large Storage Unit Device Seismic Detector Storage Large Storage Unit Protection Medium Armor Plating Weapon Particle Gun Energy Gun Particle Gun Ballistic Gun Autogun Launcher Rocket Launcher Impact Weapon Heavy Flail Slashing Weapon Axe Build | -11 -10 -10 -8 ------- Run | Yrd Mat Sub Mat Slots Evolved 4 | . . . 4 Power . | . . . . Propulsion . | . . . . Utility 2 | . . . 2 Weapon 2 | . . . 2 Parts Attached 48 | 7 12 9 20 Power 4 | 1 . 2 1 Engine 4 | 1 . 2 1 Core . | . . . . Reactor . | . . . . Propulsion 11 | 3 3 . 5 Treads 5 | 1 1 . 3 Leg 4 | 2 . . 2 Wheel 2 | . 2 . . Hover . | . . . . Flight . | . . . . Utility 16 | 1 5 3 7 Device 3 | . 2 1 . Storage 2 | 1 1 . . Processor . | . . . . Hackware . | . . . . Protection 11 | . 2 2 7 Artifact . | . . . . Weapon 17 | 2 4 4 7 Energy Gun 5 | 1 2 1 1 Energy Cannon . | . . . . Ballistic Gun 2 | 1 . . 1 Ballistic Cannon . | . . . . Launcher 7 | . 2 2 3 Special Weapon . | . . . . Impact Weapon 2 | . . 1 1 Slashing Weapon 1 | . . . 1 Piercing Weapon . | . . . . Special Melee Weapon . | . . . . Unidentified Prototypes 1 | . . 1 . Parts Lost 26 | . 1 6 19 Power 3 | . . 1 2 Propulsion 6 | . . 1 5 Utility 9 | . 1 2 6 Weapon 8 | . . 2 6 Highest Loss Streak 9 | . 1 3 9 To Critical Strikes . | . . . . Average Backups 12 | 5 12 14 12 Power . | 1 1 . . Propulsion 2 | 2 3 2 1 Utility 4 | . 3 4 6 Weapon 4 | 1 5 6 3 Tool/Special . | . . . . Unused Backups 13 | . 10 . 3 Power . | . . . . Propulsion 2 | . 2 . . Utility 6 | . 3 . 3 Weapon 5 | . 5 . . Tool/Special . | . . . . Average Slot Usage (%) 82 | . 96 92 61 Engine 10 | . 14 13 4 Treads 14 | . 15 24 5 Leg 4 | . 8 . 2 Wheel 1 | . 4 . . Device 1 | . 3 . . Storage 12 | . 14 14 9 Protection 11 | . 7 10 16 Energy Gun 11 | . 16 15 4 Ballistic Gun 2 | . . . 5 Launcher 9 | . 11 12 4 Impact Weapon 1 | . . . 3 Slashing Weapon 1 | . . . 3 Peak Build Rating 25 | 6 12 13 25 Average Rating 12 | 3 10 11 16 On Entrance 6 | . 6 12 9 Avg Prop Armor Cover (%) 11 | 18 4 . 8 Naked Turns . | . . . . Heaviest Build 49 | 13 39 39 49 Greatest Support 40 | 20 40 40 40 Greatest Overweight (x) 10 | . 2 1 10 Average Overweight (x) . | . . . 3 Largest Inventory Capacity 15 | 8 15 15 15 Average Capacity 14 | 7 12 15 15 Most Carried 15 | 8 15 15 15 Average Carried 12 | 6 12 14 12 Final Capacity 15 | 8 15 15 15 Final Carried 15 | 7 15 13 10 Class Distribution -------------------- 92% | Mutant 7% | Tank Dominant Class ---------------- Mutant | -10/Materials Mutant | -10/Subcaves Mutant | -8/Materials Resources | -11 -10 -10 -8 ----------- Run | Yrd Mat Sub Mat Matter Collected 1246 | 263 177 288 518 Remotely . | . . . . Salvage Created 1430 | 83 362 278 707 Parts 98 | 4 29 29 36 Haulers Intercepted . | . . . . Recyclers Shooed 1 | . 1 . . Parts Field Recycled . | . . . . Retrieved Matter . | . . . . Parts Self-Destructed 4 | . . 4 . Prevented . | . . . . Parts Restored . | . . . . Kills | -11 -10 -10 -8 ------- Run | Yrd Mat Sub Mat Combat Hostiles Destroyed 44 | . 11 17 16 Guns 13 | . 5 4 4 AOE 28 | . 6 13 9 Classes Destroyed 12 | 2 5 3 2 Worker 3 | . 2 . 1 Builder 4 | . 1 . 3 Tunneler 4 | 1 1 . 2 Recycler 4 | 1 2 . 1 Watcher 5 | . 1 . 4 Swarmer 10 | . 6 4 . Grunt 16 | . 5 . 11 Duelist 1 | . . . 1 Sentry 4 | . . 1 3 Hunter 1 | . . . 1 Subdweller 13 | . . 13 . Scientist 1 | . . 1 . Best Kill Streak 9 | 2 7 5 9 Combat Bots Only 5 | . 5 5 3 Max Kills in Single Turn 4 | 1 3 2 4 Gunslinging . | . . . . Exploded 2 | . 2 1 2 Melee . | . . . . Uniques/NPCs Destroyed . | . . . . Combat | -11 -10 -10 -8 -------- Run | Yrd Mat Sub Mat Hostile Shots Fired 327 | . 33 51 243 Missed 79 | . 9 17 53 Hits 248 | . 24 34 190 Melee 2 | . . . 2 Projectile 246 | . 24 34 188 AOE 1 | . . 1 . Critical Strikes 11 | . . 2 9 Damage Taken 4175 | . 272 887 3016 Core 760 | . 51 149 560 Absorbed by Shields . | . . . . Redirected to Shielding 103 | . . . 103 Regen/Repaired (Parts) 412 | . . . 412 Core Remaining (%) 60 | 100 . 20 . Volleys Fired 116 | 6 30 42 38 Largest 3 | 2 2 2 3 Hottest 160 | 70 130 130 160 Shots Fired 194 | 12 44 75 63 Gun 133 | 12 37 40 44 Cannon . | . . . . Launcher 61 | . 7 35 19 Special . | . . . . Kinetic 13 | 6 . . 7 Thermal 120 | 6 37 40 37 Explosive 61 | . 7 35 19 Electromagnetic . | . . . . Robot Hit Streak 16 | 12 3 16 7 Robot Miss Streak 5 | . 5 2 3 Penetration Max . | . . . . Secondary Targets . | . . . . Shots Hit Robots 122 | 12 17 40 53 Core Hits 105 | 3 19 32 51 Critical Kills . | . . . . Critical Parts Destroyed 2 | . . . 2 Critical Strikes 6 | 1 . . 5 Burn 4 | 1 . . 3 Smash 2 | . . . 2 Melee Attacks 23 | . . 3 20 Impact 21 | . . 3 18 Slashing 2 | . . . 2 Piercing . | . . . . Sneak Attacks 2 | . . . 2 Combat Hostiles . | . . . . Follow-up Attacks . | . . . . Damage Inflicted 6089 | 123 1147 2124 2695 Guns 1280 | 123 241 428 488 Cannons . | . . . . Explosions 4304 | . 885 1696 1723 Melee 484 | . . . 484 Ramming 21 | . 21 . . Kinetic 113 | 50 . . 63 Thermal 1167 | 73 241 428 425 Explosive 4304 | . 885 1696 1723 Electromagnetic . | . . . . Impact 346 | . . . 346 Slashing 138 | . . . 138 Piercing . | . . . . Highest Corruption . | . . . . Average Corruption . | . . . . Corruption Purged . | . . . . Corruption Blocked . | . . . . Overload Shots . | . . . . Overflow Damage 217 | . 82 3 132 Projectiles . | . . . . Explosions 115 | . 82 3 30 Melee 102 | . . . 102 Knockbacks 4 | . . . 4 Impact 4 | . . . 4 Kinetic . | . . . . Secondary . | . . . . Self-Inflicted Damage 167 | . 18 94 55 Shots 9 | . 1 4 4 Rammed 1 | . 1 . . Targets Rammed 1 | . 1 . . Kicked . | . . . . Crushed . | . . . . Highest Temperature 550 | 100 348 96 550 Average Temperature 147 | 57 83 32 225 Received Heat Transfer 1398 | . 66 180 1152 Effects 10 | . 2 . 8 Shutdowns 3 | . . . 3 Energy Bleed 2 | . . . 2 Interference 2 | . 2 . . Short Circuit 2 | . . . 2 Damage (core) 1 | . . . 1 Siege Activations . | . . . . Martial Activations . | . . . . Shielding Activations . | . . . . Robots Disrupted . | . . . . Combat Hostiles . | . . . . Robots Corrupted 3 | . . . 3 Combat Hostiles 3 | . . . 3 Parts Fried 1 | . . . 1 Impact Corruptions 4 | . . . 4 Robots Melted . | . . . . Combat Hostiles . | . . . . Parts Melted 2 | . . 1 1 Heat Transferred 3071 | 296 555 999 1221 Parts Sabotaged . | . . . . Parts Stolen . | . . . . Parts Stripped . | . . . . Power Chain Reactions . | . . . . Alert | -11 -10 -10 -8 ------- Run | Yrd Mat Sub Mat Maximum Alert Level 1 | . 1 . 1 Low Security (%) 91 | 100 82 . 99 Level 1 8 | . 17 . . Level 2 . | . . . . Level 3 . | . . . . Level 4 . | . . . . Level 5 . | . . . . High Security . | . . . . Max Security . | . . . . Peak Influence 273 | 5 273 . 203 Initial 3 | . 3 . . Average 72 | . 92 . 56 Influence Increases 1209 | 10 418 110 671 Destroy 0b10 Robot/C 640 | . 220 100 320 Destroy 0b10 Robot/NC 100 | 10 35 . 55 Destroy Leader 130 | . 32 10 88 Successful Hack 9 | . . . 9 Disable Machine 195 | . 75 . 120 Destroy Structure 120 | . 56 . 64 Partial Spotted 15 | . . . 15 Influence Decreases 1054 | 5 423 110 516 Entered New Map 2 | . 2 . . Time Decay 842 | 5 421 90 326 Lost Part 210 | . . 20 190 Squads Dispatched 6 | . . . 6 Investigation 1 | . . . 1 Extermination . | . . . . Reinforcement 2 | . . . 2 Assault . | . . . . Garrison 3 | . . . 3 Intercept . | . . . . Searches Triggered . | . . . . Construction Impeded 1 | . . . 1 Haulers Reinforced . | . . . . Active Scanning Responses . | . . . . Cargo Convoy Interrupts . | . . . . Stealth | -11 -10 -10 -8 --------- Run | Yrd Mat Sub Mat Distress Signals 4 | . 1 . 3 Communications Jammed . | . . . . Distress Signals . | . . . . Times Spotted 68 | . 20 17 31 Peak Tracking Total 7 | . 4 3 7 Tactical Retreats . | . . . . Traps | -11 -10 -10 -8 ------- Run | Yrd Mat Sub Mat Traps Triggered 1 | . . 1 . Indirectly . | . . . . Trap Hack Attempts . | . . . . Triggered . | . . . . Disarmed . | . . . . Reprogrammed . | . . . . Reused . | . . . . Traps Extracted . | . . . . Installed . | . . . . Triggered . | . . . . Machines | -11 -10 -10 -8 ---------- Run | Yrd Mat Sub Mat Machines Disabled 14 | . 6 . 8 Max in Single Turn 3 | . 1 . 3 Machines Repaired . | . . . . Machines Dismantled . | . . . . Machines Sabotaged . | . . . . Overloaded Fab Kills . | . . . . Hacking | -11 -10 -10 -8 --------- Run | Yrd Mat Sub Mat Machines Accessed 4 | . 2 . 2 Terminals 1 | . 1 . . Fabricators . | . . . . Repair Stations 3 | . 1 . 2 Recycling Units . | . . . . Scanalyzers . | . . . . Garrison Access . | . . . . Total Hacks 25 | . 7 . 18 Successful 21 | . 4 . 17 Failed 4 | . 3 . 1 Catastrophic . | . . . . Database Lockouts . | . . . . Manual . | . . . . Terminals 3 | . 3 . . Fabricators . | . . . . Repair Stations 22 | . 4 . 18 Recycling Units . | . . . . Scanalyzers . | . . . . Garrison Access . | . . . . Terminal Hacks 2 | . 2 . . Prototype ID Bank 1 | . 1 . . Alert Level 1 | . 1 . . Fabricator Hacks . | . . . . Repair Station Hacks 19 | . 2 . 17 Scan Component 10 | . 1 . 9 Repair 9 | . 1 . 8 Recycling Unit Hacks . | . . . . Scanalyzer . | . . . . Garrison Access Hacks . | . . . . Unauthorized Hacks . | . . . . Terminals . | . . . . Fabricators . | . . . . Repair Stations . | . . . . Recycling Units . | . . . . Scanalyzers . | . . . . Garrison Access . | . . . . Data Cores Recovered . | . . . . Used . | . . . . Hacking Detections 3 | . 2 . 1 Full Trace Events 1 | . . . 1 Feedback Events . | . . . . Feedback Blocked . | . . . . Robot Schematics Acquired . | . . . . Robots Built . | . . . . Authchips . | . . . . Time . | . . . . Total Robot Build Rating . | . . . . Part Schematics Acquired . | . . . . Parts Built . | . . . . Authchips . | . . . . Time . | . . . . Total Part Build Rating . | . . . . Part Studies Acquired . | . . . . Parts Repaired 9 | . 1 . 8 Time 310 | . 36 . 274 Parts Recycled . | . . . . Recycled Matter . | . . . . Retrieved Matter . | . . . . Retrieved Components . | . . . . Parts Scanalyzed . | . . . . Part Schematics Acquired . | . . . . Parts Damaged . | . . . . Bothacking | -11 -10 -10 -8 ------------ Run | Yrd Mat Sub Mat Used RIF Installer . | . . . . Robots Hacked . | . . . . Non-combat . | . . . . Combat . | . . . . Robot Hacks Applied . | . . . . Relay Couplers Released . | . . . . Fabnet Peak Effective % . | . . . . Robots Rewired . | . . . . Allies Hacked . | . . . . Hacks Repelled . | . . . . Allies | -11 -10 -10 -8 -------- Run | Yrd Mat Sub Mat Total Allies 1 | . . 1 . Largest Group 1 | . . 1 . Highest-Rated Group 19 | . . 19 . Highest-Rated Ally 19 | . . 19 . Total Orders . | . . . . Ally Attacks 6 | . . 6 . Total Damage 144 | . . 144 . Kills . | . . . . Allies Corrupted . | . . . . Allies Melted . | . . . . Intel | -11 -10 -10 -8 ------- Run | Yrd Mat Sub Mat Active Infowar (turns) 281 | . 281 . . Structural 39 | . 39 . . Seismic 242 | . 242 . . Robot Analysis Total . | . . . . Derelict Logs Recovered 1 | . . 1 . Drone Launches . | . . . . Drone Recoveries . | . . . . Exploration | -11 -10 -10 -8 ------------- Run | Yrd Mat Sub Mat Turns Passed 3550 | 98 1259 961 1232 Spaces Moved 1427 | 64 659 456 248 Core 81 | 22 . . 59 Treads 852 | 3 299 456 94 Legs 355 | 39 221 . 95 Wheels 139 | . 139 . . Hover . | . . . . Flight . | . . . . Fastest Speed 50 | 50 105 160 120 Average Speed 175 | 97 135 177 298 Slowest Speed 550 | 160 160 240 550 Overloaded Moves . | . . . . Propulsion Burnouts . | . . . . Robots Hopped . | . . . . Potential Cave-ins . | . . . . Cave-ins Triggered . | . . . . Exploration Rate (%) 37 | 4 91 30 24 Regions Visited 3 Branch Regions 1 Pre-discovered Areas . | . . . . Known Exits Taken . | . . . . Unknown Exits Taken 3 | 1 1 1 . Scrap Searched . | . . . . Spaces Dug . | . . . . Terrain Destroyed 318 | . 57 200 61 Melee . | . . . . Projectile . | . . . . AOE 318 | . 57 200 61 Terrain Rammed . | . . . . Walls Destroyed . | . . . . Machines Disabled . | . . . . Actions | -11 -10 -10 -8 --------- Run | Yrd Mat Sub Mat Total 2244 | 86 989 524 645 Wait 529 | . 236 9 284 Move 1424 | 63 658 455 248 Hop . | . . . . Pick Up 61 | 10 28 2 21 Fast Attach 10 | 3 3 2 2 Attach 32 | 3 . 4 25 Detach 4 | . . . 4 Swap 20 | 1 11 5 3 Drop 24 | . 22 2 . Fire 116 | 6 30 42 38 Melee 23 | . . 3 20 Ram 1 | . 1 . . Kick . | . . . . Crush . | . . . . Escape Stasis . | . . . . Rewire . | . . . . Trap . | . . . . Miscellaneous . | . . . . Route ------- -11/Scrapyard -10/Materials (discovered 5 exits: [*Mat x2] / [*Min x2] / [*Sub]) -10/Subcaves -8/Materials History --------- Turn | Location | Event 13 | -11/Scrapyard | Discovered new exit (range 16) 99 | -11/Scrapyard | Entered Materials 116 | -10/Materials | Discovered new exit (range 5) 311 | -10/Materials | Discovered new exit (range 15) 312 | -10/Materials | Build established: Mutant 633 | -10/Materials | Repaired Broken Com. Wheel 809 | -10/Materials | Discovered new exit (range 9) 1150 | -10/Materials | Discovered new exit (range 16) 1333 | -10/Materials | Discovered new exit (range 8) 1358 | -10/Materials | Entered Subcaves 1359 | -10/Subcaves | Approached by a straggling Scientist 1374 | -10/Subcaves | Ambushed by Subdweller buried in earth 1379 | -10/Subcaves | Ambushed by Subdweller buried in earth 1391 | -10/Subcaves | Ambushed by Subdweller buried in earth 1633 | -10/Subcaves | Learned Materials terminal intel 1663 | -10/Subcaves | Discovered new exit (range 7) 1670 | -10/Subcaves | Visited triangular shrine 1679 | -10/Subcaves | Found Prototype Device 1680 | -10/Subcaves | Identified V3-11A's Pendant 1685 | -10/Subcaves | Befriended Subdweller 1724 | -10/Subcaves | A swath of the cavern ceiling suddenly collapsed 1910 | -10/Subcaves | Core integrity fell below 50% 1986 | -10/Subcaves | Ambushed by Subdweller buried in earth 2037 | -10/Subcaves | Shifting Twisted Machinery released Sub. Laser 2110 | -10/Subcaves | Lost 3 parts (1n1u1w) 2319 | -10/Subcaves | Entered Materials 2319 | -8/Materials | Evolved 4 slots: Utility x2, Weapon x2 2320 | -8/Materials | Loaded intel: 12 terminal locations 2584 | -8/Materials | Lost 9 parts (1p2n2u4w) 2818 | -8/Materials | Repaired Broken Particle Gun 2857 | -8/Materials | Repaired Carbon-fiber Leg 2884 | -8/Materials | Repaired Ion Engine 2917 | -8/Materials | Repaired Rocket Launcher 2956 | -8/Materials | Repaired Insulated Plating 2995 | -8/Materials | Repaired Axe 3333 | -8/Materials | Core integrity fell below 50% 3431 | -8/Materials | Repaired Hammer 3464 | -8/Materials | Repaired Autogun 3493 | -8/Materials | Core integrity fell below 20% 3551 | -8/Materials | Destroyed by G-47 Trooper with Particle Gun Last Messages --------------- Critical hit (Burn: +37). U-05 Engineer lays Concrete. U-05 Engineer builds a Wall. Penetrated by Slug. H-55 Commando knocked back. U-05 Engineer lays Concrete. Lyr. Light Armor Plating destroyed. U-05 Engineer lays Concrete. Critical hit (Burn: +37). U-05 Engineer lays Concrete. Broken Lgt. Treads destroyed. U-05 Engineer builds a Wall. U-05 Engineer lays Concrete. H-55 Commando knocked back. U-05 Engineer lays Concrete. Penetrated by Slug. Lgt. Treads destroyed. U-05 Engineer lays Concrete. U-05 Engineer builds a Wall. H-55 Commando destroyed. Map ----- +----------------------------------------------------+ | ???????????????????????????""???????##### #? | | ???????????????????????????"T???????#|| #? | | ???????????????????????????""???????#|| #? | | ????????????????????????????????????# #? | | ????????????????????????????????????# #? | | ?????????????????????????#####+###??#! ## | | ???????????????????????+ #?#! ##+## | | ???????????????????????# ####### # | | ???????????????????????# #"T"#T# # | | ????????????????????#### ! ! # ! | | ???????????????????? #! | | ????????????????????? """ """ # | | ??????????????????? """ """ # | | ?????????????????? ? # """ " # | | ??????????????????? #u ##+## | | ???????????????? # ] #? | | ??????????????? # """ " #? | | ???????????????? # "G " ## | | ????????????????? + !%""" " ## | | ?????????????????? # Y% #? | | ??????????????????? # #? | | ?????????????????""" # # #####+### ######? | | ?????????????????""" # % #### #" #?????? | | ??????????????????"" # % #??# ######????? | | ??????????????????? # #??# #####?????? | | ????????????????????## @ #### #?????????? | | ?????????????????????# o + #?????????? | | ?????????????????##### %##### #?????????? | | ???????????? " g #???########?????????? | | ???????????# ########;#;#####????????????????? | | ???????????????????# #????????????????? | | ???????????????????# """ #### #???????????? | | ???????????????????# "R / #???????????? | | ???????????????????# """ !######???????????? | | ???????????????????# #????????????????? | | ???????????????????# #????????????????? | | ???????????????????# #????????????????? | | ???????????????????# "" #????????????????? | | ???????????????????# """" ##???????????????? | | ???????????????????# """" #???????????????? | | ???????????????????# """" ##???????????????? | | ???????????????????# ! " #????????????????? | | ???????????????????##############????????????????? | | ?????????????????????????????????????????????????? | | ?????????????????????????????????????????????????? | | ?????????????????????????????????????????????????? | | ?????????????????????????????????????????????????? | | ?????????????????????????????????????????????????? | | ?????????????????????????????????????????????????? | | ?????????T???????????????????????????????????????? | +----------------------------------------------------+ Best States ------------- Heat Dissipation 31 Energy Generation 15 Energy Capacity 250 Matter Stores 300 Matter Capacity 300 Sight Range 16 Terrain Scan Density 10 Armor Coverage 525 Resistance: EM 15 Core Shielding 20 Weapon Shielding 33 Evasion (%) 55 Recoil Reduction 2 Item Schematics ----------------- None Robot Schematics ------------------ None Fabricated ------------ Nothing Repaired ---------- Com. Wheel | 99% | -10/Materials | Broken Particle Gun | 84% | -8/Materials | Broken Carbon-fiber Leg | 32% | -8/Materials Ion Engine | 33% | -8/Materials Rocket Launcher | 38% | -8/Materials Insulated Plating | 35% | -8/Materials Axe | 50% | -8/Materials Hammer | 36% | -8/Materials Autogun | 33% | -8/Materials Studied --------- None Alien Tech Used ----------------- None Achievements -------------- Do Not Disturb Remodeling SUBSUB Challenges ------------ None Game ------ Seed LinearMicrodissipatorShovel Manual? 0 Play Time 00:35:53 Cumulative 7.4 hours Start 2025.12.23 @ 14:19:29 End 2025.12.23 @ 14:54:38 Sessions 1 Manual Loads 0 Difficulty Rogue Special Mode None Game No. 15 Rogue 15 Adventurer 0 Explorer 0 Win Type - Total 0 Types 0/0/0/0/0/0/0/0/0/0 Lore% 6 Gallery% 12 Achievement% 12 Wizard Run 0 Options --------- Layout 0 ASCII 0 Keyboard 0 Movement Mouse Keybinds 0 Fullscreen 1 Font 18/SmallcapsGlow Map View 76x50 Zoom Use 0% Tactical HUD 0 Map Filters NONE Filters NONE Steam 0 RUN: 488e78d2-6b0e-4515-93dd-1b08c7214096